bitfinex/quotes_ETHUSD_20241120
["timestamp","ask_amount","ask_price","bid_price","bid_amount"]
[1732120577927,3.29270657,3084.4,3082.2,0.779]
[1732120578139,3.33027066,3084.3,3082.2,0.779]
[1732120578311,0.01,3084.0,3082.2,0.779]
[1732120578649,0.05054932,3084.0,3082.2,0.779]
[1732120579312,0.04054932,3084.0,3082.2,0.779]
[1732120579515,3.0,3084.7,3082.2,0.779]
[1732120579516,0.04054305,3084.2,3082.2,0.779]
[1732120581095,0.04054305,3084.2,3081.5,0.857]
[1732120581297,0.04054305,3084.2,3081.6,0.55]
[1732120581557,0.04054305,3084.2,3081.7,0.857]
[1732120581843,0.31691411,3084.6,3082.8,3.0]
[1732120581844,0.04054342,3084.1,3082.8,3.0]
[1732120582042,0.04053995,3084.5,3082.7,0.857]
[1732120582198,0.04053995,3084.5,3083.4,3.0]
[1732120582401,0.04053995,3084.5,3083.5,0.3]
[1732120582641,0.04053995,3084.5,3082.7,0.857]
[1732120582811,0.07042963,3084.4,3082.7,0.857]
[1732120583009,0.04054033,3084.3,3082.7,0.857]
[1732120583308,0.11092523,3084.3,3081.7,3.7765]
[1732120583519,0.11092523,3084.3,3081.7,0.7765]
[1732120583716,0.11092523,3084.3,3081.8,0.43265]
[1732120583905,0.11092523,3084.3,3081.7,0.7941]
[1732120584348,0.11092523,3084.3,3081.7,5.13288721]
[1732120584856,3.01,3084.1,3081.7,0.7941]
[1732120585067,3.24275,3083.8,3081.3,0.8475]
[1732120585204,3.283485,3083.7,3081.3,0.8475]
[1732120585542,3.1106759,3083.7,3081.3,0.8475]
[1732120585967,3.24302,3083.6,3081.3,0.8475]
[1732120586166,0.68692615,3083.5,3081.3,0.8475]
[1732120586371,3.24327,3083.4,3081.3,0.8475]
[1732120586518,0.04056,3083.3,3081.3,0.8475]
[1732120586825,3.35377772,3083.3,3080.9,2.16898721]
[1732120587027,3.66683644,3083.3,3081.0,0.21689872]
[1732120587229,0.42355644,3083.3,3081.0,1.55568593]
[1732120587442,0.42355644,3083.3,3081.1,0.23858859]
[1732120587641,0.35361872,3083.3,3081.1,0.23858859]
[1732120587972,0.06989296,3083.2,3081.1,4.5773758]
[1732120588119,0.06989296,3083.2,3081.1,0.23858859]
[1732120588120,0.04055999,3083.1,3081.1,0.23858859]
[1732120588321,0.01,3083.0,3081.0,0.21689872]
[1732120588632,0.0405655,3082.9,3080.6,0.8058]
[1732120588827,0.0405655,3082.9,3080.6,2.14458721]
[1732120589028,0.06970473,3082.8,3080.7,0.21445872]
[1732120589321,0.0405655,3082.7,3080.7,1.55324593]
[1732120589563,0.11022332,3082.7,3080.7,1.55324593]
[1732120589739,0.11022332,3082.7,3080.8,0.53590459]
[1732120590144,0.0405655,3082.7,3080.8,0.53590459]
[1732120590373,0.11017853,3082.6,3080.8,0.53590459]
[1732120591959,0.01,3082.5,3080.8,0.53590459]
[1732120592167,0.01,3082.5,3080.3,2.67730032]
[1732120592168,0.04057258,3082.4,3080.3,1.33878721]
[1732120592509,0.42311309,3082.4,3080.1,2.19508721]
[1732120592991,0.38254051,3082.4,3080.1,0.8563]
[1732120593136,0.04057256,3082.3,3080.2,4.57499133]
[1732120593334,0.04057256,3082.3,3080.4,1.33878721]
[1732120593734,0.06942687,3082.2,3080.2,0.23620412]
[1732120593933,0.04057256,3082.1,3080.3,0.54312913]
[1732120594179,0.04057256,3082.1,3079.7,2.67730032]
[1732120594180,6.29518256,3082.1,3079.7,1.33878721]
[1732120594335,6.29518256,3082.1,3079.6,1.33878721]
[1732120594336,3.25489,3081.8,3079.6,1.33878721]
[1732120594540,3.05057969,3081.7,3079.5,2.14168721]
[1732120594757,3.05057969,3081.7,3079.6,0.28108752]
[1732120594758,3.24512,3081.6,3079.6,0.28108752]
[1732120594982,0.01,3081.3,3078.9,1.33878721]
[1732120595195,0.35564423,3081.3,3079.0,0.33467624]
[1732120595393,0.35564423,3081.3,3078.7,2.95086584]
[1732120595394,0.01,3081.1,3078.7,0.9428906]
[1732120595682,0.30789796,3081.0,3078.7,0.9428906]
[1732120595996,0.04059149,3080.9,3078.7,0.9428906]
[1732120596276,3.3652401,3080.9,3078.7,0.1399906]
[1732120596496,0.01,3080.7,3078.7,0.1399906]
[1732120596639,3.01,3080.5,3078.7,0.1399906]
[1732120596844,3.0,3080.3,3078.7,0.1399906]
[1732120597074,0.01,3079.7,3078.7,0.1399906]
[1732120597353,3.0,3079.2,3078.7,0.1399906]
[1732120597538,0.6763652,3079.1,3078.7,0.1399906]
[1732120597742,1.12700005,3079.1,3078.7,0.1399906]
[1732120597937,0.06797892,3079.0,3078.7,0.1399906]
[1732120598243,0.04061743,3078.9,3078.7,0.1399906]
[1732120598695,0.06788914,3078.8,3078.7,0.1399906]
[1732120598996,0.04060694,3079.6,3078.7,0.1399906]
[1732120599340,0.06818586,3079.5,3078.7,0.1399906]
[1732120599546,0.04060522,3079.4,3078.7,0.1399906]
[1732120599743,0.10874621,3079.4,3078.7,0.1399906]
[1732120599971,0.01,3079.3,3078.7,0.1399906]
[1732120600184,3.24777,3079.1,3078.7,0.1399906]
[1732120600348,0.04061779,3079.0,3078.7,0.1399906]
[1732120600691,0.04061779,3079.0,3076.1,0.803]
[1732120600692,0.01,3078.9,3076.1,0.803]
[1732120600878,0.04062034,3078.8,3076.1,0.97269344]
[1732120601087,0.39671187,3078.9,3076.1,0.823]
[1732120601392,0.10844234,3078.8,3076.1,0.803]
[1732120601890,0.10844234,3078.8,3076.1,0.97104756]
[1732120602094,3.43128657,3078.8,3076.2,0.01624975]
[1732120602387,3.43128657,3078.8,3075.1,1.33878721]
[1732120602388,3.0,3078.3,3075.6,5.50624035]
[1732120602577,3.24875,3078.1,3075.7,0.55062404]
[1732120602764,0.04063293,3078.0,3075.7,0.55062404]
[1732120602981,0.01,3077.6,3075.7,0.55062404]
[1732120603192,0.3526403,3077.6,3075.6,0.1399906]
[1732120603502,0.06722248,3077.5,3075.6,0.1399906]
[1732120603655,0.04063957,3077.4,3075.6,0.1399906]
[1732120603965,0.06712322,3077.3,3075.6,0.1399906]
[1732120604159,0.04063984,3077.2,3075.6,0.1399906]
[1732120604358,0.04063984,3077.2,3075.8,3.0]
[1732120604572,0.06702763,3077.1,3075.8,3.31399906]
[1732120604784,0.04063691,3077.0,3075.8,3.31399906]
[1732120604946,0.10761959,3077.0,3075.8,0.31399906]
[1732120605146,0.10761959,3077.0,3075.8,3.0]
[1732120605352,0.10761959,3077.0,3075.6,0.1399906]
[1732120605800,3.02,3076.9,3075.6,0.1399906]
[1732120606112,0.04064871,3076.8,3075.6,0.1399906]
[1732120606246,0.38740061,3076.8,3075.6,0.1399906]
[1732120606449,0.06684037,3076.7,3075.6,0.1399906]
[1732120606673,3.29100139,3076.6,3075.6,0.1399906]
[1732120607051,0.07460221,3076.5,3075.6,0.1399906]
[1732120607260,3.04065459,3076.4,3075.6,0.1399906]
[1732120607461,0.04065459,3076.4,3075.6,0.1399906]
[1732120607811,0.06450344,3076.3,3075.6,0.1399906]
[1732120608000,0.04065038,3076.2,3075.6,0.1399906]
[1732120608155,0.10510885,3076.2,3075.6,0.1399906]
[1732120609032,3.0,3076.1,3075.6,0.1399906]
[1732120609234,0.36117059,3076.0,3075.6,0.1399906]
[1732120609452,3.0,3075.9,3075.6,0.1399906]
[1732120609587,0.04065928,3075.8,3075.6,0.1399906]
[1732120609784,3.10493547,3075.8,3075.6,0.1399906]
[1732120609990,0.10493547,3075.8,3075.6,0.1399906]
[1732120610321,0.10493547,3075.8,3073.2,0.01630262]
[1732120610322,0.11493547,3075.8,3073.2,0.01630262]
[1732120610628,0.11493547,3075.8,3072.6,0.8002]
[1732120610629,3.25196,3075.1,3072.6,0.8002]
[1732120610831,0.04067082,3075.0,3072.6,0.8002]
[1732120610987,0.40965058,3075.0,3072.6,0.8002]
[1732120611187,0.1045835,3075.0,3072.6,0.8002]
[1732120611415,0.1045835,3075.0,3072.7,0.01634546]
[1732120611989,0.01,3074.6,3072.2,0.80085025]
[1732120612188,0.01,3074.6,3072.2,0.7845]
[1732120612189,0.05068056,3074.5,3072.2,0.7845]
[1732120612435,3.1043682,3074.5,3072.2,0.7845]
[1732120612605,0.31143682,3074.4,3072.2,0.7845]
[1732120612933,3.25291,3074.2,3072.2,0.7845]
[1732120613228,3.25291,3074.2,3072.1,1.47674176]
[1732120613229,0.01,3074.0,3072.1,1.47674176]
[1732120613420,0.04068937,3073.9,3072.1,1.47674176]
[1732120613618,0.10408306,3073.9,3072.3,0.813]
[1732120613843,0.04068937,3073.9,3072.3,0.813]
[1732120614127,0.0633402,3073.8,3072.3,0.813]
[1732120614343,0.04068135,3073.7,3072.3,0.813]
[1732120614503,0.04068135,3073.7,3072.6,3.0163608]
[1732120614708,0.04067735,3075.0,3072.7,1.10273514]
[1732120614904,0.06382969,3074.9,3072.7,0.7871]
[1732120615113,0.04067671,3074.8,3072.9,3.0]
[1732120615320,0.04067671,3074.8,3073.0,0.3]
[1732120615521,0.06373968,3074.7,3072.7,0.7871]
[1732120615845,0.04067867,3074.6,3072.8,0.01634704]
[1732120615999,0.04067867,3074.6,3073.3,3.0]
[1732120616332,3.25088,3076.1,3072.1,1.47674176]
[1732120616333,0.04067047,3075.4,3073.4,1.10343857]
[1732120616539,0.04067047,3075.4,3073.4,0.80343857]
[1732120616864,0.06401502,3075.3,3073.4,0.80343857]
[1732120617024,0.04066278,3075.2,3073.4,0.80343857]
[1732120617398,0.0406611,3076.4,3073.4,0.80343857]
[1732120617635,0.06392503,3075.1,3074.2,3.0]
[1732120617911,0.0406611,3076.4,3074.5,3.0]
[1732120618132,0.0406611,3076.4,3074.3,0.8474]
[1732120618133,0.0406611,3076.4,3074.6,0.3]
[1732120618290,0.0406611,3076.4,3073.9,0.8474]
[1732120618291,0.07446499,3076.3,3073.9,0.8474]
[1732120618494,0.01,3076.0,3073.9,0.8474]
[1732120618696,0.2792,3075.6,3073.8,3.0]
[1732120618942,0.2792,3075.4,3073.6,3.0]
[1732120619091,0.31986885,3075.3,3073.5,0.7955]
[1732120619290,0.3838931,3075.3,3073.5,0.7955]
[1732120620242,0.2792,3075.2,3073.5,0.7955]
[1732120620445,0.2792,3075.0,3073.0,0.9352]
[1732120620735,0.31987284,3074.9,3073.0,0.9352]
[1732120620944,0.31987284,3074.9,3072.5,1.0319906]
[1732120620945,3.25242,3074.7,3072.5,1.0319906]
[1732120621150,3.25264,3074.5,3072.5,1.0319906]
[1732120621303,3.04068066,3074.6,3072.5,0.1399906]
[1732120621304,0.2792,3074.3,3072.5,0.1399906]
[1732120621618,0.38340997,3074.2,3072.5,0.1399906]
[1732120622192,0.2792,3074.0,3072.5,0.1399906]
[1732120622459,0.2792,3073.7,3072.5,0.1399906]
[1732120622744,0.2792,3073.4,3072.5,0.1399906]
[1732120622890,0.04069086,3073.3,3072.5,0.1399906]
[1732120623095,0.10380575,3073.3,3072.5,0.1399906]
[1732120623570,0.06311489,3073.3,3072.6,0.892]
[1732120623956,0.04067839,3073.8,3072.6,0.892]
[1732120624164,0.2792,3074.9,3072.7,0.01635814]
[1732120624326,0.2792,3074.9,3072.6,0.892]
[1732120624327,0.04067124,3074.8,3072.8,0.9395]
[1732120624526,0.0616865,3074.7,3073.0,0.9395]
[1732120624729,0.04066875,3074.6,3073.0,0.9395]
[1732120624958,0.2792,3074.5,3073.0,0.9395]
[1732120625157,3.25305,3074.1,3072.6,0.9395]
[1732120625355,0.2792,3073.9,3072.5,0.1399906]
[1732120625567,3.25267,3074.4,3072.5,0.1399906]
[1732120625568,0.2792,3073.7,3072.5,0.1399906]
[1732120625774,0.10188747,3073.6,3072.5,0.1399906]
[1732120626269,0.10188747,3073.6,3072.6,0.878]
[1732120626426,0.0406875,3073.6,3072.6,0.878]
[1732120626829,0.0406832,3074.0,3072.6,0.878]
[1732120627065,0.2792,3073.9,3072.5,0.1399906]
[1732120627287,0.04068565,3073.8,3072.5,0.1399906]
[1732120627572,0.04068566,3073.8,3072.5,0.1399906]
[1732120627867,0.04068566,3073.8,3072.5,0.1491036]
[1732120629472,0.2792,3074.3,3072.7,0.9425]
[1732120629800,0.04067167,3074.2,3072.7,0.9425]
[1732120630355,0.2792,3074.1,3072.7,0.9425]
[1732120630528,0.04068203,3074.0,3072.7,0.9425]
[1732120631961,0.04068203,3074.0,3072.7,0.01]
[1732120631962,0.0406781,3074.0,3072.7,0.01]
[1732120632280,0.0406781,3074.0,3072.5,0.1591036]
[1732120632281,0.2792,3074.8,3073.2,0.8777]
[1732120632431,0.04066461,3074.7,3073.7,0.8777]
[1732120632780,0.09857721,3074.7,3073.7,0.8777]
[1732120633090,0.0579126,3074.7,3073.7,0.8777]
[1732120633295,0.0579126,3074.7,3074.3,3.0]
[1732120633577,0.2792,3075.3,3074.4,0.8777]
[1732120633872,0.2792,3075.5,3074.4,0.8777]
[1732120634069,0.04065726,3075.4,3074.4,0.8777]
[1732120634271,0.04065726,3075.4,3074.4,4.26547]
[1732120634497,0.2792,3075.9,3074.4,0.8777]
[1732120634640,0.2792,3075.7,3074.4,0.8777]
[1732120634853,0.2792,3075.5,3074.1,3.0]
[1732120635058,0.04066104,3075.4,3073.5,0.9198]
[1732120635244,0.09890013,3075.4,3074.0,3.0]
[1732120635548,0.04066104,3075.4,3074.1,1.2198]
[1732120635764,0.04066104,3075.4,3074.1,3.9198]
[1732120636272,0.2792,3076.2,3074.1,0.9198]
[1732120636575,0.09920814,3076.1,3074.7,0.8649]
[1732120636938,0.09920814,3076.1,3074.7,3.8649]
[1732120637210,3.25117,3075.9,3073.6,0.8649]
[1732120637476,0.2792,3075.7,3073.6,0.8649]
[1732120637632,0.55,3075.5,3073.6,0.8649]
[1732120637834,0.04066248,3075.6,3073.1,0.0263243]
[1732120637835,0.04066248,3075.4,3073.8,0.8881]
[1732120638373,0.04066248,3075.4,3074.2,3.0]
[1732120638579,0.04066248,3075.4,3074.2,0.3]
[1732120638762,0.04065687,3075.6,3074.3,0.8906]
[1732120638947,0.2792,3075.7,3074.3,0.8906]
[1732120639796,0.2792,3075.7,3074.3,0.8906]
[1732120639933,0.04065457,3075.6,3074.4,3.0]
[1732120640132,0.04065457,3075.6,3074.3,0.8906]
[1732120640588,0.04065457,3075.6,3074.3,1.27966]
[1732120640885,0.04065457,3075.6,3074.3,0.8906]
[1732120641235,0.04065457,3075.6,3073.7,0.03631328]
[1732120641236,0.2792,3075.4,3073.7,0.8773]
[1732120641483,0.55,3075.1,3073.2,0.8968]
[1732120641691,0.01,3075.8,3073.2,0.8968]
[1732120641692,0.8292,3074.8,3073.2,0.8968]
[1732120641833,0.04067092,3074.7,3073.2,0.8968]
[1732120642034,0.09861465,3074.7,3073.2,0.8968]
[1732120642240,0.8292,3074.6,3073.2,0.8968]
[1732120642441,0.09861465,3074.7,3072.5,0.1399906]
[1732120642442,0.55,3074.2,3072.6,0.9091]
[1732120642655,0.03156492,3074.1,3072.6,0.9091]
[1732120642873,0.03156492,3074.1,3072.5,0.1399906]
[1732120642874,0.2792,3073.7,3072.5,0.1399906]
[1732120643049,0.2792,3073.5,3072.5,0.1399906]
[1732120643284,0.03157584,3073.4,3072.5,0.1399906]
[1732120643780,0.2792,3073.5,3072.5,0.1399906]
[1732120644470,0.2792,3074.4,3072.6,0.8819]
[1732120644679,0.03156023,3074.3,3072.6,0.8819]
[1732120645181,0.05767984,3074.2,3072.6,0.8819]
[1732120645386,0.2792,3074.0,3072.6,0.8819]
[1732120645543,0.2792,3073.8,3072.5,0.1399906]
[1732120645745,0.01,3074.5,3072.5,0.1399906]
[1732120645746,0.31077095,3073.7,3072.5,0.1399906]
[1732120645978,0.2792,3073.5,3072.5,0.1399906]
[1732120646229,0.63889979,3073.4,3072.5,0.1399906]
[1732120646432,0.2792,3073.3,3072.5,0.1399906]
[1732120646651,0.03157541,3073.2,3072.5,0.1399906]
[1732120646787,0.08881345,3073.2,3072.5,0.1399906]
[1732120647591,0.2792,3073.1,3072.5,0.1399906]
[1732120647796,0.03157731,3073.0,3072.5,0.1399906]
[1732120648014,0.2792,3072.9,3072.5,0.1399906]
[1732120648219,0.03157797,3072.8,3072.5,0.1399906]
[1732120648427,0.08862073,3072.8,3072.5,0.1399906]
[1732120648638,0.05704276,3072.8,3072.5,0.1399906]
[1732120648819,0.01,3074.5,3072.5,0.1399906]
[1732120648820,0.2792,3073.6,3072.6,0.8963]
[1732120649241,0.2792,3073.6,3072.6,2.23508721]
[1732120649388,0.2792,3074.9,3072.7,4.36425842]
[1732120649594,3.25141,3075.6,3072.7,4.36425842]
[1732120649595,0.2792,3074.7,3073.0,1.33878721]
[1732120649831,0.031556,3074.6,3073.2,1.33878721]
[1732120650051,0.031556,3074.6,3073.5,1.33878721]
[1732120650207,0.031556,3074.6,3073.6,1.33878721]
[1732120650536,0.03155241,3074.6,3073.8,1.33878721]
[1732120650742,0.2792,3074.7,3073.9,4.20207624]
[1732120651048,0.2792,3076.1,3074.2,1.33878721]
[1732120651198,0.03154395,3076.0,3074.3,1.97346345]
[1732120651534,0.08216742,3076.0,3074.3,4.97346345]
[1732120651691,3.25111,3075.9,3074.3,1.33878721]
[1732120651890,0.3107485,3075.8,3073.9,5.20618721]
[1732120652104,0.2792,3075.7,3073.9,2.20618721]
[1732120652308,3.2518,3075.3,3073.8,1.33878721]
[1732120652502,0.2792,3075.0,3073.6,1.33878721]
[1732120652736,0.58155675,3074.9,3073.6,1.33878721]
[1732120652893,0.08169076,3074.9,3073.6,1.33878721]
[1732120653097,0.03155675,3074.9,3073.8,5.24968721]
[1732120653358,0.2792,3075.0,3074.0,1.33878721]
[1732120653765,0.2792,3076.1,3074.1,1.67346345]
[1732120654051,0.2792,3076.1,3074.2,1.33878721]
[1732120654052,0.03154271,3076.0,3074.2,1.33878721]
[1732120654404,0.0505839,3075.9,3074.0,4.33878721]
[1732120654599,0.03154244,3075.8,3074.1,2.1098575]
[1732120654846,0.2792,3075.7,3074.1,0.77107029]
[1732120655065,0.2792,3075.7,3074.2,0.51098575]
[1732120655066,0.03154139,3075.6,3074.2,0.51098575]
[1732120655239,0.2792,3075.7,3073.9,3.0]
[1732120655240,0.04065607,3075.5,3073.9,3.0]
[1732120655447,0.2792,3075.4,3074.0,0.65982003]
[1732120655631,0.04066229,3075.3,3074.1,0.02543377]
[1732120655827,0.2792,3075.4,3073.9,1.33878721]
[1732120656028,0.04065539,3075.3,3073.9,4.86375593]
[1732120656231,0.04065539,3075.3,3073.9,4.33878721]
[1732120656434,0.2792,3075.4,3074.0,0.02543641]
[1732120656769,0.2792,3075.4,3074.1,0.43642236]
[1732120657259,0.04065798,3075.3,3074.1,0.43642236]
[1732120657427,0.04065798,3075.3,3073.8,0.9109]
[1732120657639,0.2792,3075.2,3073.4,0.9406]
[1732120657855,0.31986598,3075.1,3073.4,0.9406]
[1732120658061,0.2792,3075.0,3073.4,0.9406]
[1732120658360,0.31986839,3074.9,3073.4,0.9406]
[1732120658570,0.04841059,3074.8,3073.4,0.9406]
[1732120658878,0.0406684,3074.7,3073.4,0.9406]
[1732120659161,0.0406684,3074.7,3073.5,0.02545055]
[1732120659369,0.2792,3074.9,3073.5,0.02544986]
[1732120659873,0.04066233,3074.8,3073.4,0.9406]
[1732120660221,0.04836098,3074.7,3073.4,0.9406]
[1732120660453,0.08902634,3074.7,3073.4,0.9406]
[1732120660650,0.0406648,3074.8,3073.5,0.02544967]
[1732120660862,0.0406648,3074.8,3073.4,0.9406]
[1732120661223,0.2792,3074.9,3073.9,3.0]
[1732120661604,0.04066173,3074.8,3072.9,1.33878721]
[1732120661862,0.2792,3074.7,3072.5,2.39287781]
[1732120662066,0.2792,3074.5,3072.6,0.3519701]
[1732120662223,3.29314613,3074.6,3072.5,0.1399906]
[1732120662224,0.2792,3074.3,3072.5,0.1399906]
[1732120662425,0.2792,3074.1,3072.5,0.1399906]
[1732120662736,0.2792,3073.9,3072.5,0.1399906]
[1732120662918,0.04068676,3073.8,3072.5,0.1399906]
[1732120663124,0.2792,3073.7,3072.5,0.1399906]
[1732120663359,0.08854671,3073.6,3072.5,0.1399906]
[1732120663833,0.2792,3073.5,3072.5,0.1399906]
[1732120664037,0.31988061,3073.5,3072.5,0.1399906]
[1732120664483,0.2792,3073.5,3072.5,0.1399906]
[1732120664779,0.2792,3073.5,3072.6,0.9141]
[1732120665181,0.0406806,3074.3,3072.6,0.9141]
[1732120665380,0.04655233,3074.2,3072.6,0.93956426]
[1732120665541,3.5928721,3074.9,3072.6,0.9141]
[1732120665742,3.65835998,3074.8,3072.7,0.02546263]
[1732120665947,0.04067781,3074.7,3072.8,0.02546346]
[1732120666152,0.04672275,3074.6,3072.6,0.9141]
[1732120666463,0.04067079,3074.5,3072.6,0.9141]
[1732120666831,0.04663272,3074.4,3072.6,0.9141]
[1732120667069,0.0406725,3074.3,3072.6,0.9141]
[1732120667272,0.0406725,3074.3,3073.1,3.0]
[1732120667430,0.0406725,3074.3,3073.2,0.3]
[1732120667633,0.04067249,3075.2,3073.2,0.3]
[1732120667945,0.04067249,3075.2,3072.7,0.02545849]
[1732120667946,0.04695639,3075.1,3072.7,0.02545849]
[1732120668129,0.278,3074.9,3073.1,3.0]
[1732120668337,0.36549081,3074.8,3073.2,0.3]
[1732120668568,0.278,3074.7,3073.2,0.3]
[1732120668811,0.278,3074.5,3073.3,0.33]
[1732120668976,0.278,3074.3,3073.3,0.33]
[1732120669179,0.08722631,3074.2,3072.6,0.9141]
[1732120669473,0.278,3074.1,3072.5,0.1399906]
[1732120669776,0.278,3073.9,3072.5,0.1399906]
[1732120669931,0.04067967,3073.8,3072.5,0.16546737]
[1732120670464,0.04067778,3073.8,3072.5,0.1399906]
[1732120670650,0.278,3073.7,3072.5,0.1399906]
[1732120670995,0.04068031,3073.6,3072.5,0.1399906]
[1732120672037,0.278,3073.7,3072.6,0.02547619]
[1732120672405,0.278,3073.7,3072.6,0.02546857]
[1732120672614,0.278,3073.7,3072.5,0.45398966]
[1732120673094,0.04067589,3073.6,3072.5,0.45398966]
[1732120673301,0.278,3073.7,3072.5,0.45398966]
[1732120673602,0.278,3073.7,3072.5,0.47946016]
[1732120673755,0.278,3073.7,3072.5,0.45398966]
[1732120673955,0.278,3073.7,3072.5,0.47946007]
[1732120674182,0.278,3075.0,3072.7,0.9267]
[1732120674352,0.278,3074.6,3073.2,3.0]
[1732120674569,0.278,3074.4,3073.2,0.3]
[1732120674776,0.08567515,3074.3,3072.7,0.95215547]
[1732120675013,0.278,3074.4,3073.4,3.0]
[1732120675298,0.278,3074.4,3073.6,0.3228]
[1732120675602,0.04066806,3075.5,3073.9,0.3228]
[1732120675603,0.278,3075.4,3073.9,0.3228]
[1732120675897,0.278,3075.4,3074.1,3.3228]
[1732120675898,0.08612195,3075.3,3074.1,3.3228]
[1732120676112,0.08612195,3075.3,3073.7,0.025443]
[1732120676113,0.04546211,3075.3,3074.3,0.3228]
[1732120676254,0.278,3075.4,3074.3,0.3228]
[1732120676654,0.278,3075.4,3074.3,0.34822105]
[1732120677072,0.05064861,3077.1,3074.3,0.34822105]
[1732120677258,0.278,3076.9,3074.3,0.34822105]
[1732120677454,0.278,3076.7,3074.3,0.34822105]
[1732120677762,0.36316799,3076.6,3074.3,0.34822105]
[1732120678113,0.278,3076.5,3074.3,0.34822105]
[1732120678253,0.3186473,3076.4,3074.3,0.34822105]
[1732120678455,0.278,3076.3,3074.3,0.34822105]
[1732120678668,0.08507794,3076.4,3074.3,0.34822105]
[1732120678669,0.3194473,3076.2,3074.3,0.3228]
[1732120678869,0.36378801,3076.2,3074.7,0.3228]
[1732120679071,0.3194473,3076.2,3074.7,0.3228]
[1732120679361,0.3194473,3076.2,3074.9,0.3228]
[1732120679563,0.2788,3076.2,3074.7,0.02541279]
[1732120679812,0.04064494,3076.1,3074.3,0.02540666]
[1732120680377,0.2788,3076.2,3075.1,3.0]
[1732120680743,0.2788,3076.2,3075.2,0.3]
[1732120681178,0.2788,3076.2,3075.1,3.0]
[1732120681372,0.2788,3076.2,3074.6,0.8666]
[1732120683021,0.31944578,3076.1,3074.0,0.9203]
[1732120683224,0.3288,3075.9,3074.1,0.98581414]
[1732120683511,0.3288,3075.7,3073.9,5.35]
[1732120683719,0.04065725,3075.8,3074.0,0.535]
[1732120683720,0.36945722,3075.6,3074.0,0.535]
[1732120684288,0.36945722,3075.6,3073.2,0.02543616]
[1732120684289,0.3288,3075.4,3073.3,0.33014263]
[1732120684493,0.3288,3075.2,3073.4,0.02544716]
[1732120684690,0.3288,3075.0,3073.5,0.33014263]
[1732120684894,0.04066355,3074.9,3073.6,0.02544717]
[1732120685226,0.37240368,3074.8,3073.2,0.02544005]
[1732120685371,0.04066342,3074.7,3073.2,0.02544005]
[1732120685578,0.3288,3074.6,3072.8,5.35]
[1732120685794,0.3288,3074.4,3072.9,0.536]
[1732120685991,0.36947199,3074.3,3072.8,5.35]
[1732120687011,0.04332439,3074.2,3072.9,0.02546461]
[1732120687177,0.04067218,3074.2,3073.0,0.53754646]
[1732120687379,0.3288,3074.1,3073.0,0.53754646]
[1732120687644,0.04067474,3074.0,3073.0,0.53754646]
[1732120688003,0.3288,3073.9,3072.8,5.35]
[1732120688424,0.08381242,3073.8,3072.8,5.35]
[1732120688899,0.04313761,3073.8,3072.8,5.35]
[1732120689101,0.3288,3073.9,3072.9,0.5604697]
[1732120689500,0.04312798,3073.8,3073.0,0.9232]
[1732120689699,0.3288,3074.4,3073.1,0.53063066]
[1732120690338,0.3288,3074.4,3073.2,0.3228]
[1732120690542,0.3288,3074.4,3073.6,3.0]
[1732120690747,0.3288,3075.6,3073.7,0.0254419]
[1732120691043,0.04240176,3075.5,3074.2,3.0]
[1732120691244,0.04240176,3075.5,3073.8,0.9195]
[1732120691245,0.04240176,3075.5,3074.7,3.0]
[1732120691541,0.3288,3075.6,3074.8,0.02541601]
[1732120691840,0.3288,3075.6,3074.0,0.8728]
[1732120691841,0.04240176,3075.5,3074.1,0.02541522]
[1732120692012,0.04240176,3075.5,3074.3,0.3228]
[1732120692230,0.04240176,3075.5,3074.2,0.55]
[1732120692231,0.3288,3076.6,3074.6,0.55]
[1732120692544,0.04064152,3076.5,3074.7,0.34820311]
[1732120692748,0.08349299,3076.5,3074.7,0.02540311]
[1732120692908,0.662943,3077.2,3074.1,5.25711213]
[1732120692909,0.3288,3076.4,3074.1,5.25711213]
[1732120693242,0.3288,3076.2,3074.2,0.73799218]
[1732120693455,0.3288,3076.2,3074.3,0.46636922]
[1732120693747,0.04064585,3076.1,3074.4,0.02541176]
[1732120693973,0.3288,3076.2,3074.8,0.9342]
[1732120694249,0.3288,3076.2,3074.9,0.02540044]
[1732120694452,0.3288,3076.2,3075.3,3.0]
[1732120694607,0.3288,3076.2,3075.4,0.3]
[1732120694944,0.3288,3076.2,3074.9,0.02540044]
[1732120695173,0.3288,3076.2,3074.8,0.9342]
[1732120695333,0.04064262,3076.1,3074.4,3.9304]
[1732120695529,0.3288,3076.2,3074.5,0.4734453]
[1732120696026,0.3288,3076.2,3074.6,0.56]
[1732120696227,0.3288,3076.2,3075.2,3.0]
[1732120696441,0.3288,3076.2,3074.7,0.02539653]
[1732120696960,0.3288,3076.0,3073.9,1.35141213]
[1732120697255,0.3288,3075.8,3073.7,5.35]
[1732120697424,0.01,3076.3,3073.7,5.35]
[1732120697425,0.04065764,3075.7,3073.7,5.35]
[1732120697628,0.36945767,3075.6,3073.8,0.62638]
[1732120697816,0.36945767,3075.6,3073.6,0.93923534]
[1732120698314,0.3288,3075.6,3073.8,0.01]
[1732120698620,0.3288,3075.6,3073.9,0.20457017]
[1732120699012,0.31652663,3075.6,3074.1,0.01]
[1732120699227,0.31652663,3075.6,3074.1,3.57540852]
[1732120699428,0.31652663,3075.6,3074.2,3.58414207]
[1732120699626,0.31652663,3075.6,3074.3,0.02541793]
[1732120700516,0.31652663,3075.6,3074.1,0.0354178]
[1732120700828,0.31652663,3075.6,3074.1,0.0254178]
[1732120701041,0.31652663,3075.6,3073.9,0.19457614]
[1732120701266,0.04065029,3075.5,3074.0,0.02543156]
[1732120701418,0.01,3076.3,3073.7,0.02542509]
[1732120701621,0.08073028,3076.2,3073.7,0.02542509]
[1732120701852,0.08073028,3076.2,3073.3,5.35]
[1732120701853,3.26147,3075.6,3073.3,5.37543112]
[1732120702053,0.3165,3075.4,3073.4,0.67114121]
[1732120702265,0.04066271,3075.5,3073.4,0.67114121]
[1732120702266,0.3165,3075.2,3073.4,0.67114121]
[1732120702551,0.3165,3075.0,3073.5,0.60211412]
[1732120702736,0.35716341,3074.9,3073.5,0.60211412]
[1732120702938,0.3165,3074.8,3073.5,0.60211412]
[1732120703141,0.3165,3074.8,3073.6,0.02544679]